Cogmind - Beta 13 @@@ ROGUE MODE // 2024.04.01 @ 18:12:33 Player: Olafz Result: Destroyed by 5P-9ZA(R) with Subdweller Laser Performance ------------- Evolutions (0) 0 Regions Visited (3) 600 Robots Destroyed (20) 100 Value Destroyed (446) 446 Prototype IDs (0) 0 Alien Tech Used (0) 0 Bonus (157) 157 TOTAL SCORE: 1303 Bonus ------- Follower Combat Kills 175 Friendly Fire -18 Cogmind --------- Core Integrity 0/250 Matter 173/300 Energy 200/200 System Corruption 0% Temperature Cool (6) Movement Walking (120) Location -10/Subcaves Parts ------- > --- POWER (1) -------- Subdweller Power Source > --- PROPULSION (2) --- Myomer Leg Myomer Leg > --- UTILITY (2) ------ Small Storage Unit Subdweller Optics > --- WEAPON (2) ------- Battle Rifle Subdweller Machine Gun > --- INVENTORY (8) ---- Subdweller Power Source Subdweller Power Source Aluminum Leg Subdweller Optics Seismic Detector Authchip [R/Combat] Splice Drone Bay Peak State ------------ > --- POWER ------------ Subdweller Power Source > --- PROPULSION ------- Myomer Leg Myomer Leg > --- UTILITY ---------- Small Storage Unit Subdweller Optics > --- WEAPON ----------- Battle Rifle Subdweller Machine Gun > --- INVENTORY -------- Subdweller Power Source Subdweller Power Source Aluminum Leg Subdweller Optics Seismic Detector Authchip [R/Combat] Splice Drone Bay [Rating: 24] Favorites ----------- Power Ion Engine Engine Ion Engine Propulsion Aluminum Leg Treads Light Treads Leg Aluminum Leg Utility Small Storage Unit Device Seismic Detector Storage Small Storage Unit Weapon Heavy EM Pulse Gun Energy Gun Heavy EM Pulse Gun Ballistic Gun Battle Rifle Special Weapon Mining Laser Build | -11 -10 -10 -10 ------- Run | Yrd Mat Min Sub Slots Evolved . | . . . . Power . | . . . . Propulsion . | . . . . Utility . | . . . . Weapon . | . . . . Parts Attached 25 | 10 2 5 8 Power 4 | 1 . 1 2 Engine 4 | 1 . 1 2 Core . | . . . . Reactor . | . . . . Propulsion 9 | 4 . 2 3 Treads 2 | 2 . . . Leg 7 | 2 . 2 3 Wheel . | . . . . Hover . | . . . . Flight . | . . . . Utility 3 | 2 . . 1 Device 2 | 1 . . 1 Storage 1 | 1 . . . Processor . | . . . . Hackware . | . . . . Protection . | . . . . Artifact . | . . . . Weapon 9 | 3 2 2 2 Energy Gun 4 | 1 2 1 . Energy Cannon . | . . . . Ballistic Gun 3 | 1 . . 2 Ballistic Cannon . | . . . . Launcher . | . . . . Special Weapon 2 | 1 . 1 . Impact Weapon . | . . . . Slashing Weapon . | . . . . Piercing Weapon . | . . . . Special Melee Weapon . | . . . . Unidentified Prototypes . | . . . . Parts Lost 5 | . . 2 3 Power . | . . . . Propulsion 1 | . . . 1 Utility . | . . . . Weapon 4 | . . 2 2 Highest Loss Streak 3 | . . 1 3 To Critical Strikes . | . . . . Average Slot Usage (%) 93 | . 98 89 97 Engine 14 | . 14 14 14 Leg 27 | . 28 28 27 Device 14 | . 14 14 14 Storage 14 | . 14 14 14 Energy Gun 9 | . 5 15 2 Ballistic Gun 8 | . 10 . 21 Special Weapon 3 | . 10 2 2 Naked Turns . | . . . . Heaviest Build 18 | 15 17 17 18 Greatest Support 50 | 40 20 20 50 Greatest Overweight (x) 1 | . . . 1 Average Overweight (x) . | . . . . Largest Inventory Capacity 8 | 8 8 8 8 Average Capacity 7 | 6 8 8 8 Most Carried 8 | 4 7 8 8 Average Carried 6 | 2 4 5 7 Final Capacity 8 | 8 8 8 8 Final Carried 7 | 4 4 6 7 Class Distribution -------------------- 54% | Mutant 45% | Scavenger-Mutant Dominant Class ---------------- Mutant | -10/Materials Mutant | -10/Mines Scavenger-Mutant | -10/Subcaves Resources | -11 -10 -10 -10 ----------- Run | Yrd Mat Min Sub Matter Collected 488 | 293 . 87 108 Remotely . | . . . . Salvage Created 738 | 132 . 453 153 Parts 40 | 7 . 24 9 Haulers Intercepted . | . . . . Recyclers Shooed 2 | 1 . 1 . Parts Field Recycled . | . . . . Retrieved Matter . | . . . . Parts Self-Destructed 5 | . . . 5 Prevented . | . . . . Kills | -11 -10 -10 -10 ------- Run | Yrd Mat Min Sub Combat Hostiles Destroyed 16 | . . 12 4 Guns 14 | . . 12 2 AOE 2 | . . . 2 Classes Destroyed 5 | 2 . 2 1 Tunneler 2 | 2 . . . Recycler 2 | 1 . 1 . Swarmer 7 | . . 7 . Grunt 6 | . . 5 1 Subdweller 3 | . . . 3 Best Kill Streak 3 | 3 . 3 2 Combat Bots Only 3 | . . 3 2 Max Kills in Single Turn 2 | 1 . 2 2 Gunslinging 1 | . . 1 . Exploded 2 | . . . 2 Melee . | . . . . Uniques/NPCs Destroyed . | . . . . Combat | -11 -10 -10 -10 -------- Run | Yrd Mat Min Sub Hostile Shots Fired 86 | . . 46 40 Missed 34 | . . 19 15 Damage Taken 914 | . . 288 626 Core 251 | . . 73 178 Absorbed by Shields . | . . . . Core Remaining (%) 100 | 100 . . . Volleys Fired 84 | 5 . 40 39 Largest 2 | 2 . 2 2 Hottest 100 | 70 . 100 55 Shots Fired 133 | 10 . 53 70 Gun 125 | 10 . 45 70 Cannon . | . . . . Launcher . | . . . . Special 8 | . . 8 . Kinetic 67 | 5 . . 62 Thermal 13 | 5 . 8 . Explosive . | . . . . Electromagnetic 53 | . . 45 8 Robot Hit Streak 8 | 7 . 8 7 Robot Miss Streak 6 | 2 . 5 6 Penetration Max . | . . . . Secondary Targets 3 | . . 2 1 Max Gunslinging Chain 1 | . . 1 1 Shots Hit Robots 55 | 7 . 28 20 Core Hits 28 | 3 . 15 10 Critical Kills . | . . . . Critical Parts Destroyed 1 | . . . 1 Critical Strikes 1 | . . . 1 Destroy 1 | . . . 1 Melee Attacks . | . . . . Impact . | . . . . Slashing . | . . . . Piercing . | . . . . Sneak Attacks . | . . . . Combat Hostiles . | . . . . Follow-up Attacks . | . . . . Damage Inflicted 958 | 88 . 438 432 Guns 840 | 88 . 438 314 Cannons . | . . . . Explosions 118 | . . . 118 Melee . | . . . . Ramming . | . . . . Kinetic 243 | 38 . . 205 Thermal 168 | 50 . . 118 Explosive . | . . . . Electromagnetic 547 | . . 438 109 Impact . | . . . . Slashing . | . . . . Piercing . | . . . . Highest Corruption . | . . . . Average Corruption . | . . . . Corruption Purged . | . . . . Corruption Blocked . | . . . . Overload Shots . | . . . . Overflow Damage . | . . . . Projectiles . | . . . . Explosions . | . . . . Melee . | . . . . Knockbacks . | . . . . Impact . | . . . . Kinetic . | . . . . Secondary . | . . . . Self-Inflicted Damage . | . . . . Shots . | . . . . Rammed . | . . . . Targets Rammed . | . . . . Kicked . | . . . . Crushed . | . . . . Highest Temperature 285 | 45 . 285 . Average Temperature 60 | 23 . 64 . Received Heat Transfer 252 | . . 123 129 Siege Activations . | . . . . Robots Corrupted . | . . . . Combat Hostiles . | . . . . Parts Fried 4 | . . 4 . Impact Corruptions . | . . . . Robots Melted . | . . . . Combat Hostiles . | . . . . Parts Melted . | . . . . Heat Transferred 298 | 148 . . 150 Parts Sabotaged . | . . . . Parts Stolen . | . . . . Parts Stripped . | . . . . Power Chain Reactions 1 | . . . 1 Alert | -11 -10 -10 -10 ------- Run | Yrd Mat Min Sub Peak Influence 276 | 15 9 276 . Initial 9 | . 9 3 . Average 95 | 4 9 119 . Maximum Alert Level 1 | . . 1 . Low Security (%) 87 | 100 100 84 . Level 1 12 | . . 15 . Level 2 . | . . . . Level 3 . | . . . . Level 4 . | . . . . Level 5 . | . . . . High Security . | . . . . Max Security . | . . . . Squads Dispatched . | . . . . Investigation . | . . . . Extermination . | . . . . Reinforcement . | . . . . Assault . | . . . . Garrison . | . . . . Intercept . | . . . . Searches Triggered . | . . . . Construction Impeded . | . . . . Haulers Reinforced . | . . . . Active Scanning Responses . | . . . . Cargo Convoy Interrupts . | . . . . Stealth | -11 -10 -10 -10 --------- Run | Yrd Mat Min Sub Distress Signals . | . . . . Communications Jammed . | . . . . Distress Signals . | . . . . Times Spotted 34 | . . 16 18 Peak Tracking Total 11 | . . 3 11 Tactical Retreats 2 | . . 1 1 Traps | -11 -10 -10 -10 ------- Run | Yrd Mat Min Sub Traps Triggered 1 | . . . 1 Indirectly . | . . . . Trap Hack Attempts . | . . . . Triggered . | . . . . Disarmed . | . . . . Reprogrammed . | . . . . Reused . | . . . . Traps Extracted . | . . . . Installed . | . . . . Triggered . | . . . . Machines | -11 -10 -10 -10 ---------- Run | Yrd Mat Min Sub Machines Disabled . | . . . . Max in Single Turn . | . . . . Machines Repaired . | . . . . Machines Dismantled . | . . . . Machines Sabotaged . | . . . . Overloaded Fab Kills . | . . . . Hacking | -11 -10 -10 -10 --------- Run | Yrd Mat Min Sub Machines Accessed 2 | . 1 1 . Terminals . | . . . . Fabricators . | . . . . Repair Stations . | . . . . Recycling Units 1 | . 1 . . Scanalyzers . | . . . . Garrison Access . | . . . . Total Hacks 2 | . 1 1 . Successful 2 | . 1 1 . Failed . | . . . . Catastrophic . | . . . . Database Lockouts . | . . . . Manual . | . . . . Terminals . | . . . . Fabricators . | . . . . Repair Stations . | . . . . Recycling Units 1 | . 1 . . Scanalyzers . | . . . . Garrison Access . | . . . . Terminal Hacks 1 | . . 1 . Open Door 1 | . . 1 . Fabricator Hacks . | . . . . Repair Station Hacks . | . . . . Recycling Unit Hacks 1 | . 1 . . Retrieve Components 1 | . 1 . . Scanalyzer . | . . . . Garrison Access Hacks . | . . . . Unauthorized Hacks . | . . . . Terminals . | . . . . Fabricators . | . . . . Repair Stations . | . . . . Recycling Units . | . . . . Scanalyzers . | . . . . Garrison Access . | . . . . Data Cores Recovered . | . . . . Used . | . . . . Hacking Detections . | . . . . Full Trace Events . | . . . . Feedback Events . | . . . . Feedback Blocked . | . . . . Robot Schematics Acquired . | . . . . Robots Built . | . . . . Authchips . | . . . . Time . | . . . . Total Robot Build Rating . | . . . . Part Schematics Acquired . | . . . . Parts Built . | . . . . Authchips . | . . . . Time . | . . . . Total Part Build Rating . | . . . . Parts Repaired . | . . . . Time . | . . . . Parts Recycled . | . . . . Recycled Matter . | . . . . Retrieved Matter . | . . . . Retrieved Components 3 | . 3 . . Parts Scanalyzed . | . . . . Part Schematics Acquired . | . . . . Parts Damaged . | . . . . Bothacking | -11 -10 -10 -10 ------------ Run | Yrd Mat Min Sub Used RIF Installer . | . . . . Robots Hacked . | . . . . Non-combat . | . . . . Combat . | . . . . Robot Hacks Applied . | . . . . Relay Couplers Released . | . . . . Fabnet Peak Effective % . | . . . . Robots Rewired . | . . . . Allies Hacked . | . . . . Hacks Repelled . | . . . . Allies | -11 -10 -10 -10 -------- Run | Yrd Mat Min Sub Total Allies 1 | . . 1 . Largest Group 1 | . . 1 1 Highest-Rated Group 31 | . . 31 31 Highest-Rated Ally 31 | . . 31 31 Total Orders . | . . . . Ally Attacks 16 | . . 13 3 Total Damage 301 | . . 235 66 Kills 8 | . . 8 . Allies Corrupted . | . . . . Allies Melted . | . . . . Intel | -11 -10 -10 -10 ------- Run | Yrd Mat Min Sub Robot Analysis Total . | . . . . Derelict Logs Recovered 3 | . . 2 1 Drone Launches . | . . . . Drone Recoveries . | . . . . Exploration | -11 -10 -10 -10 ------------- Run | Yrd Mat Min Sub Turns Passed 2057 | 115 174 1042 726 Spaces Moved 1317 | 65 139 622 491 Core 2 | 2 . . . Treads 16 | 16 . . . Legs 1299 | 47 139 622 491 Wheels . | . . . . Hover . | . . . . Flight . | . . . . Fastest Speed 50 | 50 120 120 120 Average Speed 120 | 127 120 120 121 Slowest Speed 190 | 160 120 120 190 Overloaded Moves . | . . . . Propulsion Burnouts . | . . . . Robots Hopped . | . . . . Cave-ins Triggered . | . . . . Exploration Rate (%) 38 | 6 31 87 29 Regions Visited 3 Branch Regions 2 Pre-discovered Areas 3 | . . 2 1 Known Exits Taken . | . . . . Unknown Exits Taken 3 | 1 1 1 . Scrap Searched 1 | . . . 1 Spaces Dug . | . . . . Terrain Destroyed 6 | . . . 6 Melee . | . . . . Projectile . | . . . . AOE 6 | . . . 6 Terrain Rammed . | . . . . Walls Destroyed . | . . . . Machines Disabled . | . . . . Actions | -11 -10 -10 -10 --------- Run | Yrd Mat Min Sub Total 1635 | 83 148 847 557 Wait 186 | . . 178 8 Move 1314 | 64 138 621 491 Hop . | . . . . Pick Up 7 | 1 2 1 3 Fast Attach 16 | 10 2 . 4 Attach 4 | . . 2 2 Detach 7 | 3 2 . 2 Swap 5 | . . 3 2 Drop 9 | . 4 . 5 Fire 84 | 5 . 40 39 Melee . | . . . . Ram . | . . . . Kick . | . . . . Crush . | . . . . Escape Stasis . | . . . . Rewire 3 | . . 2 1 Trap . | . . . . Miscellaneous . | . . . . Route ------- -11/Scrapyard -10/Materials -10/Mines -10/Subcaves History --------- Turn | Location | Event 23 | -11/Scrapyard | Discovered new exit (range 16) 116 | -11/Scrapyard | Entered Materials 237 | -10/Materials | Discovered new exit (range 16) 290 | -10/Materials | Entered Mines 302 | -10/Mines | Build established: Mutant 458 | -10/Mines | Found the Drone Emporium 466 | -10/Mines | Found Prototype Device 529 | -10/Mines | Escorted by a lone wolf Derelict 549 | -10/Mines | Learned location of Storage (-9) 780 | -10/Mines | Learned location of Zion (-7) 914 | -10/Mines | Excavation squad dispatched 914 | -10/Mines | A large section of the Mines collapsed 1164 | -10/Mines | Excavation squad dispatched 1324 | -10/Mines | Discovered new exit (range 6) 1332 | -10/Mines | Entered Subcaves 1332 | -10/Subcaves | Accompanied by 1 ally 1337 | -10/Subcaves | Ambushed by Subdwellers from Twisted Machinery 1393 | -10/Subcaves | Build established: Scavenger-Mutant 1421 | -10/Subcaves | Shifting Twisted Machinery released Spk. Treads 1422 | -10/Subcaves | Shifting Twisted Machinery released Hvy. Riot Gun 1455 | -10/Subcaves | Ambushed by swarm of Subdwellers 1455 | -10/Subcaves | Ambushed by Subdwellers from Twisted Machinery 1455 | -10/Subcaves | Ambushed by Subdwellers from Twisted Machinery 1455 | -10/Subcaves | Ambushed by Subdwellers from Twisted Machinery 1455 | -10/Subcaves | Ambushed by Subdwellers from Twisted Machinery 1455 | -10/Subcaves | Ambushed by Subdwellers from Twisted Machinery 1455 | -10/Subcaves | Ambushed by Subdwellers from Twisted Machinery 1468 | -10/Subcaves | Core integrity fell below 50% 1500 | -10/Subcaves | Lost 3 parts (1n2w) 1510 | -10/Subcaves | Lost 3 allies 1770 | -10/Subcaves | Core integrity fell below 20% 1801 | -10/Subcaves | Shifting Twisted Machinery released Sub. Machine Gun 1858 | -10/Subcaves | Shifting Twisted Machinery released Shrapnel Trap 1892 | -10/Subcaves | A swath of the cavern ceiling suddenly collapsed 2038 | -10/Subcaves | Ambushed by Subdwellers from Twisted Machinery 2058 | -10/Subcaves | Destroyed by 5P-9ZA(R) with Subdweller Laser Last Messages --------------- 01714_ Sub. Power Source shoots sparks and powers down. 01769_ Triggered Shrapnel Trap. 01769_ An expanding cloud of shrapnel blasts out in all directions. 01769_ QJ-H6B(g) destroyed. 01784_ RG-IEB(g) triggered Shrapnel Trap. 01784_ An expanding cloud of shrapnel blasts out in all directions. 01784_ RG-IEB(g) destroyed. 01786_ Acquired 10 matter. Sub. Machine Gun falls loose from the Twisted Machinery. 01819_ Subatomizers dissect the Carbon-fiber Leg. Shrapnel Trap falls loose from the Twisted Machinery. 01879_ G-34 Mercenary destroyed. 01885_ Heat Sink fries itself beyond repair. 01885_ Acquired 28 matter. 01892_ Shrapnel Trap crushed. A swath of the cavern ceiling suddenly collapses. 02054_ GF-45H(R) suffers critical hit (Destroy). 02054_ Destroyed Sub. Laser. 02057_ GF-45H(R) destroyed. 02057_ Switching to secondary target: 5P-9ZA(R). Map ----- +----------------------------------------------------+ | ????????????????????????????????????????????? | | ????????????????????????????????????????????? | | ????????????????????????????????????????????? | | ????????????????????????????????????????????? | | ????????????????????????????????????????????? | | ????????????????????????????????????????????? | | ????????????????????????????????????????????? | | ????????????????????????????????????????????? | | ????????????????????????????????????????????? | | ????????????????????